[Event "Chinese League Division-A 2024"]
[Site "Fuling Chongqing"]
[Date "2024.07.07"]
[Round "10.1"]
[White "Li, Chao b"]
[Black "Wang, Yue"]
[Result "1/2-1/2"]
[ECO "C47"]
[WhiteElo "2645"]
[BlackElo "2652"]
[Annotator "TA"]
[PlyCount "67"]
[EventDate "2024.06.28"]
[EventType "team-tourn"]
[EventCountry "CHN"]
[SourceTitle "playchess.com"]
[Source "ChessBase"]
[SourceQuality "1"]
[TimeControl "40/5400+30:1800+30"]

{[%evp 16,67,0,0,12,10,8,6,11,10,48,0,0,0,0,0,0,0,0,0,0,0,0,0,6,0,11,29,15,0,0,0,0,0,0,0,0,0,0,0,0,0,0,0,0,0,0,0,0,0,0,0,0,0]} 1. e4 {[%emt 0:00:04]} e5 {[%emt 0:01:56]} 2. Nf3 {[%emt 0:00:10]} Nc6 {[%emt 0:00:47]} 3. Nc3 {[%emt 0:02:31]} Nf6 {[%emt 0:01:41]} 4. d4 {[%emt 0:00:11]} exd4 {[%emt 0:01:11]} 5. Nxd4 {[%emt 0:00:05]} Bb4 {[%emt 0:00:05]} 6. Nxc6 {[%emt 0:00:08]} bxc6 {[%emt 0:00:12]} 7. Bd3 {[%emt 0:00:04]} d5 {[%emt 0:00:28]} 8. Bd2 {[%emt 0:00:21]} O-O {[%emt 0:06:06]} 9. O-O {[%emt 0:03:04]} Bxc3 {[%emt 0:02:32]} 10. Bxc3 {[%emt 0:00:08]} dxe4 {[%emt 0:01:57]} 11. Bxf6 {[%emt 0:00:11]} Qxf6 {[%emt 0:00:08]} 12. Bxe4 {[%emt 0:00:04]} g6 {[%emt 0:02:56] Repels Qh5} 13. c3 {[%emt 0:01:41]} (13. b3 $14 {is more appropriate.}) 13... Rb8 $11 {[%emt 0:04:10]} 14. Qc2 {[%emt 0:00:22]} c5 {[%emt 0:01:01]} 15. Rad1 {[%emt 0:01:14]} Be6 {[%emt 0:00:49]} 16. Bd5 {[%emt 0:00:39]} Rfd8 {[%emt 0:01:10]} 17. Bxe6 {[%emt 0:00:47]} Qxe6 {[%emt 0:00:10]} 18. a3 {[%emt 0:00:46]} Rxd1 {[%emt 0:01:38]} 19. Rxd1 {[%emt 0:00:04][%mdl 4096] Endgame. KQR-KQR} Re8 {[%emt 0:00:09][%cal Oe6e1] [#] ( -> ...Qe1+!)} 20. h3 {[%emt 0:00:44]} Qe2 {[%emt 0:02:07]} 21. Qxe2 {[%emt 0:00:08]} Rxe2 {[%emt 0:00:05] KR-KR} 22. Rd7 {[%emt 0:00:08] The position is equal.} Rxb2 {[%emt 0:01:42]} 23. Rxc7 {[%emt 0:00:16]} Rb3 {[%emt 0:00:12][%csl LRa3,LRc3]} 24. Rxa7 {[%emt 0:00:09]} Rxc3 {[%emt 0:00:11]} 25. a4 {[%emt 0:00:03]} Rc1+ {[%emt 0:00:23]} 26. Kh2 {[%emt 0:00:04]} Ra1 {[%emt 0:00:07]} 27. a5 {[%emt 0:00:11]} c4 {[%emt 0:00:07]} 28. a6 {[%emt 0:00:10]} c3 {[%emt 0:00:10] [#] ...c2 would now be deadly.} 29. Rc7 {[%emt 0:00:12]} Rxa6 {[%emt 0:00:15]} 30. Rxc3 {[%emt 0:00:06]} Ra2 {[%emt 0:00:03]} 31. Kg1 {[%emt 0:00:10]} Ra1+ {[%emt 0:00:05]} 32. Kh2 {[%emt 0:00:02]} Ra2 {[%emt 0:00:05]} 33. Kg1 {[%emt 0:00:05]} Ra1+ {[%emt 0:00:05]} 34. Kh2 {[%emt 0:00:02] Not much happened in this game.   Weighted Error Value: White=0.04 (flawless) /Black=0.03 (flawless) .  Mistake:       	White=1     	---        Inaccurate:     	---       	Black=1      OK:         	White=11    	Black=13     Best:        	White=2     	---} 1/2-1/2

[Event "Chinese League Division-A 2024"]
[Site "Fuling Chongqing"]
[Date "2024.07.07"]
[Round "10.2"]
[White "Dai, Changren"]
[Black "Xiu, Deshun"]
[Result "1/2-1/2"]
[ECO "D38"]
[WhiteElo "2502"]
[BlackElo "2514"]
[Annotator "TA"]
[PlyCount "93"]
[EventDate "2024.06.28"]
[EventType "team-tourn"]
[EventCountry "CHN"]
[SourceTitle "playchess.com"]
[Source "ChessBase"]
[SourceQuality "1"]
[TimeControl "40/5400+30:1800+30"]

{[%evp 24,93,24,9,21,19,14,0,11,0,0,0,0,-1126,401,376,1430,0,0,0,0,0,0,0,0,0,0,0,0,-8,0,0,0,0,0,-10,-10,-8,-12,-15,0,0,0,0,0,0,0,0,0,0,0,0,0,0,0,0,0,0,0,0,0,0,0,0,0,0,0,0,0,0,0,0]} 1. d4 {[%emt 0:00:06]} Nf6 {[%emt 0:00:17]} 2. c4 {[%emt 0:00:07]} e6 {[%emt 0:00:05]} 3. Nf3 {[%emt 0:00:03]} d5 {[%emt 0:00:16]} 4. Nc3 {[%emt 0:00:05]} Bb4 {[%emt 0:00:12]} 5. cxd5 {[%emt 0:00:16]} exd5 {[%emt 0:00:05]} 6. Bg5 {[%emt 0:00:08]} h6 {[%emt 0:00:14]} 7. Bh4 {[%emt 0:00:06]} O-O {[%emt 0:02:07] D38: Queen's Gambit Declined: Ragozin Defence (4 Nf3 Bb4).} 8. e3 {[%emt 0:00:14]} Bf5 {[%emt 0:02:20]} 9. Qb3 {[%emt 0:02:32]} Bxc3+ {[%emt 0:00:28]} 10. Qxc3 {[%emt 0:01:30]} g5 {[%emt 0:03:55]} 11. Bg3 {[%emt 0:00:11]} Ne4 {[%emt 0:00:25]} 12. Qxc7 {[%emt 0:02:28]} Nc6 {[%emt 0:01:00]} 13. Qxd8 {[%emt 0:01:20]} (13. Qxb7 $2 Qa5+ 14. b4 Nxb4 $19) 13... Rfxd8 {[%emt 0:00:20]} 14. Bb5 {[%emt 0:00:11]} Rac8 {[%emt 0:04:47]} 15. Ke2 {[%emt 0:01:48]} a6 $146 {[%emt 0:02:33]} ({Predecessor:} 15... h5 16. Bxc6 Rxc6 17. Rhc1 Rdc8 18. Rxc6 Rxc6 19. Ne1 Rb6 20. b3 Nc3+ 21. Kd2 Rc6 {0-1 Tsygankov,E (2524)-Legrand,S (2488) FICGS W-ch qf3 email 2021 (3)}) 16. Bxc6 {[%emt 0:00:41]} Rxc6 {[%emt 0:00:06]} 17. Rhc1 {[%emt 0:00:08]} Rdc8 $1 {[%emt 0:00:23]} 18. Rc2 $2 {[%emt 0:01:34][%mdl 8192] [#]} (18. Rxc6 $11 Rxc6 19. Ne1) 18... Rc5 $4 {[%mdl 8192]} (18... Rxc2+ $3 $19 {[%mdl 512] and life is good for Black.} 19. Kf1 Rc1+ (19... Rxb2 $2 20. Be5 $19) 20. Rxc1 Rxc1+ 21. Ke2 Bd7 22. Nxg5 hxg5 (22... Bb5+ $2 23. Kf3 $19)) 19. Rxc5 $18 {[%emt 0:00:30]} (19. dxc5 Nxg3+ 20. hxg3 Bxc2 $18) 19... Rc7 $2 {[%emt 0:00:07] [#]} (19... Nxc5 20. dxc5 Rxc5) 20. Rc6 $2 (20. Rxc7 $3 $18 b5 (20... Nf6 21. Rxb7) 21. Rac1 (21. Be5 f6 $18)) 20... Rxc6 $11 {[%emt 0:01:00]} 21. Ne1 {[%emt 0:00:34]} Rb6 {[%emt 0:04:52]} 22. b3 {[%emt 0:02:33]} Rc6 {[%emt 0:07:52]} 23. f3 {[%emt 0:03:20]} Nc3+ {[%emt 0:01:45]} 24. Kf1 {[%emt 0:04:39]} (24. Kd2 $5) 24... Bb1 {[%emt 0:01:34]} 25. e4 {[%emt 0:07:00]} dxe4 {[%emt 0:07:35]} 26. d5 $1 {[%emt 0:00:15]} Rc8 {[%emt 0:00:33]} (26... Nxd5 $2 27. Rxb1 f5 28. fxe4 fxe4 29. Rb2 $18) 27. Be5 {[%emt 0:02:40]} Bd3+ {[%emt 0:00:58]} 28. Nxd3 {[%emt 0:00:07]} exd3 {[%emt 0:00:05]} 29. Bxc3 {[%emt 0:00:18]} (29. d6 $5 Nd5 $8 30. Ke1 $11) 29... Rxc3 {[%emt 0:00:06]} 30. Ke1 {[%emt 0:01:47]} Rc2 {[%emt 0:04:09]} 31. Rd1 {[%emt 0:00:10]} Rxg2 {[%emt 0:01:09]} 32. Rxd3 {[%emt 0:00:07]} Kf8 {[%emt 0:00:10]} (32... Rxa2 $2 {is the wrong capture.} 33. d6 Kg7 34. d7 Rxh2 35. d8=Q $18 (35. d8=B Rc2 $14)) 33. Re3 $1 {[%emt 0:02:15]} Rc2 $1 {[%emt 0:00:44]} (33... Rxa2 $2 {perishes.} 34. d6 Ra1+ (34... Rxh2 $2 35. d7 $18) 35. Ke2 Ra2+ 36. Kd3 $18) 34. d6 {[%emt 0:00:17]} Rc8 {[%emt 0:00:13]} 35. Kf2 {[%emt 0:00:21]} Rd8 {[%emt 0:00:20]} 36. Rd3 {[%emt 0:00:14]} f6 {[%emt 0:02:02]} 37. Kg3 {[%emt 0:01:05]} Kf7 {[%emt 0:00:11]} 38. Kg4 {[%emt 0:01:57]} Kg6 {[%emt 0:03:02]} 39. h4 {[%emt 0:00:17]} f5+ {[%emt 0:00:17]} 40. Kg3 {[%emt 0:00:14]} Kf6 {[%emt 0:00:11]} 41. hxg5+ {[%emt 0:30:16]} hxg5 {[%emt 0:30:07]} 42. f4 {[%emt 0:00:00]} g4 {[%emt 0:00:00]} 43. Rd5 {[%emt 0:00:00]} Ke6 {[%emt 0:00:00]} 44. Re5+ {[%emt 0:00:00]} Kf6 $1 {[%emt 0:00:00]} 45. Rd5 {[%emt 0:00:00]} Ke6 {[%emt 0:00:00]} 46. Re5+ {[%emt 0:00:00]} Kf6 $1 {[%emt 0:00:00]} 47. Rd5 {[%emt 0:00:00]} 1/2-1/2

[Event "Chinese League Division-A 2024"]
[Site "Fuling Chongqing"]
[Date "2024.07.07"]
[Round "10.3"]
[White "Zhang, Di"]
[Black "Chu, Wei Chao"]
[Result "1/2-1/2"]
[ECO "E01"]
[WhiteElo "2362"]
[BlackElo "2412"]
[Annotator "TA"]
[PlyCount "61"]
[EventDate "2024.06.28"]
[EventType "team-tourn"]
[EventCountry "CHN"]
[SourceTitle "playchess.com"]
[Source "ChessBase"]
[SourceQuality "1"]
[TimeControl "40/5400+30:1800+30"]

{[%evp 19,61,18,13,6,13,0,0,0,6,1,0,0,0,0,0,0,0,0,0,0,0,0,16,16,19,16,20,0,0,0,0,-3,0,0,0,0,0,0,0,0,0,0,0,0]} 1. Nf3 {[%emt 0:00:06]} d5 {[%emt 0:00:40]} 2. g3 {[%emt 0:00:14]} Nf6 {[%emt 0:00:10]} 3. Bg2 {[%emt 0:00:10]} c5 {[%emt 0:03:34]} 4. O-O {[%emt 0:03:28]} e6 {[%emt 0:02:59]} 5. d4 {[%emt 0:05:12]} cxd4 {[%emt 0:03:58]} 6. Nxd4 {[%emt 0:00:10]} e5 {[%emt 0:00:11]} 7. Nf3 {[%emt 0:08:27]} Nc6 {[%emt 0:02:31]} 8. c4 {[%emt 0:01:33]} d4 {[%emt 0:02:30]} 9. e3 {[%emt 0:00:16]} Be7 {[%emt 0:03:12]} 10. exd4 {[%emt 0:00:34]} exd4 {[%emt 0:00:06] The position is equal.} 11. b4 {[%emt 0:16:19]} Bxb4 {[%emt 0:12:52] [#]} 12. Nxd4 $1 {[%emt 0:00:15]} O-O {[%emt 0:02:13]} 13. Nxc6 {[%emt 0:06:51]} bxc6 {[%emt 0:00:10]} 14. Qxd8 {[%emt 0:00:22]} Rxd8 {[%emt 0:00:08]} 15. Bxc6 {[%emt 0:00:30]} Bh3 {[%emt 0:13:11]} 16. Bg2 {[%emt 0:00:55]} Bxg2 {[%emt 0:03:48]} 17. Kxg2 {[%emt 0:00:10]} Rac8 {[%emt 0:00:06]} 18. a3 {[%emt 0:02:54]} Bf8 {[%emt 0:04:31]} 19. Be3 {[%emt 0:00:30]} Rxc4 {[%emt 0:03:18]} 20. Bxa7 {[%emt 0:00:08]} Ra8 {[%emt 0:00:24]} 21. Be3 {[%emt 0:01:07]} Nd5 {[%emt 0:01:26]} 22. Bd2 {[%emt 0:00:18]} h5 {[%emt 0:00:28]} 23. a4 {[%emt 0:01:03]} Rcxa4 {[%emt 0:00:19]} 24. Rxa4 {[%emt 0:00:08]} Rxa4 {[%emt 0:00:04]} 25. Nc3 {[%emt 0:00:05]} Nxc3 {[%emt 0:00:05]} 26. Bxc3 $11 {[%emt 0:00:04] KRB-KRB} g6 {[%emt 0:00:35]} 27. Re1 {[%emt 0:00:25]} Bg7 {[%emt 0:00:17]} 28. Re8+ {[%emt 0:00:09]} Kh7 {[%emt 0:00:05]} 29. Bxg7 {[%emt 0:00:08]} Kxg7 {[%emt 0:00:03]} 30. h4 {[%emt 0:00:05]} Ra2 {[%emt 0:00:04]} 31. Re3 {[%emt 0:00:05] A balanced but interesting game.   Weighted Error Value: White=0.02 (flawless) /Black=0.01 (flawless) .  OK:         	White=8     	Black=10     Best:        	---       	Black=1} 1/2-1/2

[Event "Chinese League Division-A 2024"]
[Site "Fuling Chongqing"]
[Date "2024.07.07"]
[Round "10.4"]
[White "Xiao, Yiyi"]
[Black "Li, Ruofan"]
[Result "1/2-1/2"]
[ECO "E04"]
[WhiteElo "2338"]
[BlackElo "2321"]
[Annotator "TA"]
[PlyCount "60"]
[EventDate "2024.06.28"]
[EventType "team-tourn"]
[EventCountry "CHN"]
[SourceTitle "playchess.com"]
[Source "ChessBase"]
[SourceQuality "1"]
[TimeControl "40/5400+30:1800+30"]

{[%evp 23,60,17,23,15,19,11,15,13,23,0,25,11,17,4,10,6,14,0,6,0,0,0,0,0,0,3,2,4,4,0,0,0,0,0,0,0,0,0,0]} 1. Nf3 {[%emt 0:00:27]} d5 {[%emt 0:03:03]} 2. g3 {[%emt 0:00:13]} Nf6 {[%emt 0:00:26]} 3. Bg2 {[%emt 0:00:12]} c5 {[%emt 0:01:04]} 4. O-O {[%emt 0:00:20]} Nc6 {[%emt 0:00:05]} 5. d4 {[%emt 0:00:38]} e6 {[%emt 0:00:37]} 6. c4 {[%emt 0:06:18]} dxc4 {[%emt 0:00:29]} 7. dxc5 {[%emt 0:04:12]} Qxd1 {[%emt 0:00:23]} 8. Rxd1 {[%emt 0:00:05]} Bxc5 {[%emt 0:00:30]} 9. Nbd2 {[%emt 0:00:08]} c3 {[%emt 0:01:33]} 10. bxc3 {[%emt 0:00:07]} O-O {[%emt 0:01:32]} 11. Nb3 {[%emt 0:00:22]} Be7 {[%emt 0:00:23]} 12. Nfd4 {[%emt 0:06:39]} Bd7 {[%emt 0:13:00]} 13. Bg5 {[%emt 0:04:06]} Rfd8 {[%emt 0:01:52]} 14. Nxc6 {[%emt 0:13:47]} Bxc6 {[%emt 0:00:06]} 15. Bxc6 {[%emt 0:00:07]} bxc6 {[%emt 0:00:03]} 16. Na5 {[%emt 0:05:13]} Rac8 {[%emt 0:00:45]} 17. c4 {[%emt 0:08:25] Dodges Rd5} h6 {[%emt 0:07:48] The position is equal.} 18. Bxf6 {[%emt 0:09:07]} Bxf6 {[%emt 0:00:15]} (18... Rxd1+ 19. Rxd1 Bxf6 20. Rd7 $16) 19. Rab1 {[%emt 0:00:06]} Kf8 {[%emt 0:01:45]} 20. e3 {[%emt 0:02:15]} Ke8 {[%emt 0:04:23]} 21. Kf1 {[%emt 0:04:07]} Rxd1+ {[%emt 0:01:41]} 22. Rxd1 $11 {[%emt 0:00:02][%mdl 4096] Endgame. KRB-KRN} Bd8 {[%emt 0:00:14]} 23. Nb7 {[%emt 0:00:54] [#] aiming for Nd6+.} Be7 {[%emt 0:00:25]} 24. Nd6+ {[%emt 0:00:38]} Bxd6 {[%emt 0:00:05]} 25. Rxd6 {[%emt 0:00:04] KR-KR} a5 {[%emt 0:00:36]} 26. a4 {[%emt 0:02:13]} Rb8 {[%emt 0:00:36]} 27. Rxc6 {[%emt 0:00:08] Strongly threatening Ra6.} Rb4 {[%emt 0:00:04]} 28. Ra6 {[%emt 0:01:28]} Rxa4 {[%emt 0:00:08]} 29. Ra7 {[%emt 0:00:16]} Rxc4 {[%emt 0:00:12]} 30. Rxa5 {[%emt 0:00:09]} g6 {[%emt 0:00:14] Not much happened in this game.   Weighted Error Value: White=0.07 (flawless) /Black=0.03 (flawless) .  OK:         	White=2     	Black=11     Best:        	---       	Black=1} 1/2-1/2

[Event "Chinese League Division-A 2024"]
[Site "Fuling Chongqing"]
[Date "2024.07.07"]
[Round "10.5"]
[White "Guo, Weibao"]
[Black "Jiang, Tianyu"]
[Result "1/2-1/2"]
[ECO "D14"]
[WhiteElo "1900"]
[BlackElo "1995"]
[Annotator "RC"]
[PlyCount "60"]
[EventDate "2024.06.28"]
[EventType "team-tourn"]
[EventCountry "CHN"]
[SourceTitle "playchess.com"]
[Source "ChessBase"]
[SourceQuality "1"]
[TimeControl "40/5400+30:1800+30"]

1. Nf3 {[%emt 0:00:03]} d5 {[%emt 0:00:23]} 2. d4 {[%emt 0:00:52]} Nf6 {[%emt 0:00:40]} 3. c4 {[%emt 0:01:39]} c6 {[%emt 0:02:41]} 4. cxd5 {[%emt 0:04:43]} cxd5 {[%emt 0:00:54]} 5. Nc3 {[%emt 0:00:53]} Nc6 {[%emt 0:01:37]} 6. Bf4 {[%emt 0:01:21]} Bf5 {[%emt 0:03:49]} 7. e3 {[%emt 0:00:12]} e6 {[%emt 0:00:31]} 8. a3 {[%emt 0:04:10]} Bd6 {[%emt 0:05:21]} 9. Bxd6 {[%emt 0:03:53]} Qxd6 {[%emt 0:00:07]} 10. Bd3 {[%emt 0:01:45]} Bxd3 {[%emt 0:04:49]} 11. Qxd3 {[%emt 0:00:02]} O-O {[%emt 0:01:32]} 12. O-O {[%emt 0:01:00]} Rac8 {[%emt 0:03:07]} 13. Rac1 {[%emt 0:01:06]} Na5 {[%emt 0:04:00]} 14. Rc2 {[%emt 0:05:07]} Nc4 {[%emt 0:03:53]} 15. Rfc1 {[%emt 0:02:53]} a6 {[%emt 0:02:56]} 16. Ne5 {[%emt 0:09:55]} Nxe5 {[%emt 0:12:36]} 17. dxe5 {[%emt 0:00:09]} Qxe5 {[%emt 0:00:06]} 18. Nxd5 {[%emt 0:00:24]} Rxc2 {[%emt 0:02:07]} 19. Nxf6+ {[%emt 0:01:13]} Qxf6 {[%emt 0:00:11]} 20. Qxc2 {[%emt 0:00:15]} g6 {[%emt 0:02:02]} 21. Qc3 {[%emt 0:01:19]} Qxc3 {[%emt 0:01:21]} 22. Rxc3 {[%emt 0:00:07]} Rd8 {[%emt 0:00:20]} 23. g4 {[%emt 0:01:50]} Rd7 {[%emt 0:01:04]} 24. Kg2 {[%emt 0:00:21]} Kg7 {[%emt 0:00:29]} 25. h4 {[%emt 0:01:24]} e5 {[%emt 0:01:29]} 26. Kf3 {[%emt 0:02:21]} h5 {[%emt 0:01:37]} 27. gxh5 {[%emt 0:02:23]} gxh5 {[%emt 0:00:08]} 28. Ke2 {[%emt 0:01:54]} Kg6 {[%emt 0:01:44]} 29. f3 {[%emt 0:01:25]} f6 {[%emt 0:01:05]} 30. e4 {[%emt 0:00:55]} Kf7 {[%emt 0:00:18]} 1/2-1/2

[Event "Chinese League Division-A 2024"]
[Site "Fuling Chongqing"]
[Date "2024.07.07"]
[Round "10.6"]
[White "Nie, Xinyang"]
[Black "Jiang, Haochen"]
[Result "0-1"]
[ECO "D31"]
[WhiteElo "2395"]
[BlackElo "2290"]
[Annotator "TA"]
[PlyCount "76"]
[EventDate "2024.06.28"]
[EventType "team-tourn"]
[EventCountry "CHN"]
[SourceTitle "playchess.com"]
[Source "ChessBase"]
[SourceQuality "1"]
[TimeControl "40/5400+30:1800+30"]

{[%evp 9,75,4,7,0,0,0,0,0,0,0,0,0,0,0,0,9,13,0,-13,-45,32,28,25,27,25,0,0,-12,-19,-16,-8,-33,0,-11,0,-151,-127,-191,-34,-31,-25,-41,-48,-43,-28,-58,-47,-198,-204,-188,-187,-849,-853,-830,-568,-539,-532,-2600,-416,-502,-481,-512,-523,-477,-424,-29998,-29999,-29999]} 1. d4 {[%emt 0:00:03]} d5 {[%emt 0:01:14]} 2. c4 {[%emt 0:00:04]} e6 {[%emt 0:00:06]} 3. Nc3 {[%emt 0:00:05]} Be7 {[%emt 0:00:07]} 4. cxd5 {[%emt 0:01:16]} exd5 {[%emt 0:00:14]} 5. Nf3 {[%emt 0:02:26]} c6 {[%emt 0:00:24]} 6. Bf4 {[%emt 0:00:51]} Bf5 {[%emt 0:00:37]} 7. e3 {[%emt 0:01:36]} Nd7 {[%emt 0:07:41]} 8. Be2 {[%emt 0:05:05] The position is equal.} h6 {[%emt 0:02:28]} 9. Nd2 {[%emt 0:11:57]} Ngf6 {[%emt 0:08:39]} 10. a3 {[%emt 0:00:11]} O-O {[%emt 0:02:26]} 11. g4 {[%emt 0:00:59]} Bh7 {[%emt 0:04:12]} 12. h4 {[%emt 0:00:26]} Ne8 {[%emt 0:01:06][%cal Oe7d6]} 13. Nf3 {[%emt 0:28:04]} (13. g5 $5) 13... Bd6 {[%emt 0:07:13]} 14. Ne5 {[%emt 0:05:38]} Nxe5 {[%emt 0:19:51]} (14... Qc7 $15 15. Nxd7 Qxd7) 15. dxe5 $14 {[%emt 0:02:13]} Bb8 {[%emt 0:00:59]} 16. g5 {[%emt 0:02:28]} Qe7 {[%emt 0:03:40]} 17. gxh6 {[%emt 0:03:07]} (17. Qd4 {looks sharper.} Nc7 18. gxh6 Ne6 19. Qb4) 17... Bxe5 {[%emt 0:01:04]} 18. Bxe5 {[%emt 0:00:10]} Qxe5 {[%emt 0:00:05]} 19. hxg7 {[%emt 0:00:58]} Nxg7 {[%emt 0:02:47]} 20. Rg1 {[%emt 0:02:26]} Kh8 {[%emt 0:08:36]} 21. Rg5 {[%emt 0:00:35]} Qh2 {[%emt 0:02:21][%cal Oa8e8] Hoping for ...Rae8!} 22. Bf3 $2 {[%emt 0:05:17]} (22. Bd3 $1 $11) 22... Rae8 {[%emt 0:03:12][%cal Oe8e3] Strongly threatening ...Rxe3+!} 23. Ne2 {[%emt 0:10:22] [#]} (23. Rg2 $17 {was called for.} Qe5 (23... Qxh4 24. Rg4 $17) 24. Ne2) 23... f6 $2 {[%emt 0:09:17]} (23... Qxh4 24. Rg4 Qf6 25. Qd4 Qxd4 26. Rxd4) ({Black should try} 23... Nf5 $1 $19 24. Rg2 Qh1+ (24... Qxh4 25. Rg4 $17) 25. Kd2 Qxh4) 24. Rg2 $1 $15 {[%emt 0:02:47]} Qxh4 {[%emt 0:01:37][%cal Og7f5] White must now prevent ...Nf5!} 25. Rg4 {[%emt 0:01:22]} Qh6 $36 {[%emt 0:02:31][%mdl 2048] Black has good play.} 26. Qa4 {[%emt 0:02:31][%cal Oe2f4]} Nf5 {[%emt 0:06:05][%cal Od5d4] And now ...d4! would win.} 27. Rd1 {[%emt 0:04:33]} Rg8 {[%emt 0:02:28]} 28. Qxa7 {[%emt 0:03:34] White does not recover from this.} (28. Qf4 $15) 28... Qh3 $19 {[%emt 0:02:03]} 29. Ng1 {[%emt 0:00:57]} Qh2 {[%emt 0:00:11] aiming for ...Rxg4.} 30. Rxg8+ {[%emt 0:02:56]} (30. Ne2) 30... Rxg8 {[%emt 0:01:04]} 31. Ne2 {[%emt 0:00:25]} Qh3 {[%emt 0:00:55]} 32. Bxd5 {[%emt 0:00:04]} cxd5 {[%emt 0:00:09]} 33. Qxb7 {[%emt 0:00:07] [#]} d4 {[%emt 0:00:49]} 34. Qc6 {[%emt 0:00:35]} Qh4 {[%emt 0:00:22]} ({Weaker is} 34... dxe3 35. Qxf6+ Ng7 36. fxe3 $15) 35. exd4 {[%emt 0:00:10]} Ne3 {[%emt 0:00:26]} 36. Rc1 {[%emt 0:00:33]} Ng2+ {[%emt 0:00:39]} 37. Kf1 {[%emt 0:00:03]} (37. Kd2 $19 Qxf2 38. Qe6) 37... Qh1+ {[%emt 0:00:14]} 38. Ng1 {[%emt 0:00:03]} Bd3# {[%emt 0:00:07] Weighted Error Value: White=0.69/Black=0.40.  Mistake:       	White=5     	Black=3      Inaccurate:     	White=5     	Black=1      OK:         	White=6     	Black=15     Best:        	White=2     	Black=2      Strong:       	White=1     	---} 0-1